[Event "XIII Mediterranean Championship 2023"]
[Site "Castell-Platja d Aro"]
[Date "2023.11.04"]
[Round "1.1"]
[White "Alsina Leal, Daniel"]
[Black "Galvan Cipriani, Viviana"]
[Result "1-0"]
[ECO "B42"]
[WhiteElo "2531"]
[BlackElo "2077"]
[Annotator "RC"]
[PlyCount "61"]
[EventDate "2023.10.26"]
[EventType "swiss"]
[EventCountry "ESP"]
[SourceTitle "playchess.com"]
[Source "ChessBase"]
[SourceQuality "1"]
[TimeControl "5400+30"]

1. e4 {[%emt 0:00:02]} c5 {[%emt 0:01:49]} 2. Nf3 {[%emt 0:00:13]} e6 {[%emt 0:00:07]} 3. d4 {[%emt 0:00:17]} cxd4 {[%emt 0:00:08]} 4. Nxd4 {[%emt 0:00:04]} a6 {[%emt 0:00:06]} 5. Bd3 {[%emt 0:00:09]} Bc5 {[%emt 0:00:25]} 6. Nb3 {[%emt 0:00:13]} Ba7 {[%emt 0:00:06]} 7. Qe2 {[%emt 0:00:21]} d6 {[%emt 0:13:20]} 8. Be3 {[%emt 0:02:31]} Nf6 {[%emt 0:01:56]} 9. O-O {[%emt 0:08:55]} O-O {[%emt 0:00:33]} 10. c4 {[%emt 0:07:57]} Nc6 {[%emt 0:06:08]} 11. Nc3 {[%emt 0:03:38]} Qc7 {[%emt 0:03:39]} 12. Bxa7 {[%emt 0:03:30]} Rxa7 {[%emt 0:00:27]} 13. Rac1 {[%emt 0:04:08]} Qb8 {[%emt 0:08:28]} 14. f4 {[%emt 0:14:50]} b6 {[%emt 0:04:44]} 15. Rce1 {[%emt 0:01:08]} Rd7 {[%emt 0:12:43]} 16. Rf3 {[%emt 0:02:33]} Bb7 {[%emt 0:18:48]} 17. Rh3 {[%emt 0:01:16]} Rfd8 {[%emt 0:06:23]} 18. e5 {[%emt 0:24:48]} dxe5 {[%emt 0:01:17]} 19. Bxh7+ {[%emt 0:00:54]} Nxh7 {[%emt 0:01:03]} 20. Qh5 {[%emt 0:00:09]} Kf8 {[%emt 0:10:32]} 21. Qxh7 {[%emt 0:03:35]} Ne7 {[%emt 0:02:17]} 22. Qh8+ {[%emt 0:02:59]} Ng8 {[%emt 0:00:07]} 23. fxe5 {[%emt 0:00:49]} Rd2 {[%emt 0:06:18]} 24. Nxd2 {[%emt 0:00:41]} Rxd2 {[%emt 0:00:05]} 25. Rg3 {[%emt 0:00:31]} g6 {[%emt 0:00:06]} 26. Rxg6 {[%emt 0:03:27]} Ke7 {[%emt 0:00:38]} 27. Qxg8 {[%emt 0:03:33]} Qc7 {[%emt 0:01:02]} 28. Rg3 {[%emt 0:01:52]} Qc5+ {[%emt 0:00:15]} 29. Kh1 {[%emt 0:00:08]} Qf2 {[%emt 0:00:58]} 30. Qg5+ {[%emt 0:00:27]} Ke8 {[%emt 0:00:29]} 31. Rg1 {[%emt 0:00:39]} 1-0

[Event "XIII Mediterranean Championship 2023"]
[Site "Castell-Platja d Aro"]
[Date "2023.11.04"]
[Round "1.2"]
[White "Pla Almenar, Nel"]
[Black "Iermito, Sebastian"]
[Result "1/2-1/2"]
[ECO "B40"]
[WhiteElo "2070"]
[BlackElo "2521"]
[Annotator "RC"]
[PlyCount "48"]
[EventDate "2023.10.26"]
[EventType "swiss"]
[EventCountry "ESP"]
[SourceTitle "playchess.com"]
[Source "ChessBase"]
[SourceQuality "1"]
[TimeControl "5400+30"]

1. e4 {[%emt 0:00:03]} c5 {[%emt 0:00:06]} 2. Nf3 {[%emt 0:00:08]} Nc6 {[%emt 0:00:25]} 3. d4 {[%emt 0:00:07]} cxd4 {[%emt 0:00:03]} 4. Nxd4 {[%emt 0:00:07]} e6 {[%emt 0:00:04]} 5. Nc3 {[%emt 0:00:43]} Qc7 {[%emt 0:00:07]} 6. Nxc6 {[%emt 0:01:00]} bxc6 {[%emt 0:04:43]} 7. Bd3 {[%emt 0:00:09]} d5 {[%emt 0:04:00]} 8. O-O {[%emt 0:02:01]} Nf6 {[%emt 0:00:11]} 9. Qe2 {[%emt 0:02:04]} Be7 {[%emt 0:02:15]} 10. Bd2 {[%emt 0:05:50]} O-O {[%emt 0:00:39]} 11. e5 {[%emt 0:03:33]} Nd7 {[%emt 0:00:07]} 12. Rae1 {[%emt 0:01:41]} Re8 {[%emt 0:05:09]} 13. Na4 {[%emt 0:14:01]} Nb6 {[%emt 0:09:19]} 14. Qg4 {[%emt 0:06:26]} c5 {[%emt 0:15:56]} 15. b3 {[%emt 0:11:41]} a5 {[%emt 0:16:07]} 16. Nxb6 {[%emt 0:11:37]} Qxb6 {[%emt 0:00:02]} 17. Re3 {[%emt 0:00:56]} g6 {[%emt 0:02:12]} 18. Rh3 {[%emt 0:03:44]} Ba6 {[%emt 0:05:51]} 19. Rxh7 {[%emt 0:05:19]} Kxh7 {[%emt 0:00:18]} 20. Qh5+ {[%emt 0:00:10]} Kg8 {[%emt 0:00:07]} 21. Bxg6 {[%emt 0:00:18]} fxg6 {[%emt 0:00:04]} 22. Qxg6+ {[%emt 0:00:09]} Kh8 {[%emt 0:00:02]} 23. Qh6+ {[%emt 0:00:14]} Kg8 {[%emt 0:00:01]} 24. Qg6+ {[%emt 0:00:08]} Kh8 {[%emt 0:00:05]} 1/2-1/2

[Event "XIII Mediterranean Championship 2023"]
[Site "Castell-Platja d Aro"]
[Date "2023.11.04"]
[Round "1.3"]
[White "Asis Gargatagli, Hipolito"]
[Black "Vinas Racionero, Josep"]
[Result "1-0"]
[ECO "B05"]
[WhiteElo "2511"]
[BlackElo "2075"]
[Annotator "ChessBase"]
[PlyCount "56"]
[EventDate "2023.10.26"]
[EventType "swiss"]
[EventCountry "ESP"]
[SourceTitle "playchess.com"]
[Source "ChessBase"]
[SourceQuality "1"]
[TimeControl "5400+30"]

1. e4 {[%emt 1:31:00]} Nf6 {[%emt 1:31:00]} 2. e5 {[%emt 0:00:30]} Nd5 {[%emt 0:00:30]} 3. d4 {[%emt 0:00:30]} d6 {[%emt 0:00:30]} 4. Nf3 {[%emt 0:00:30]} Bg4 {[%emt 0:00:30]} 5. Be2 {[%emt 0:00:30]} e6 {[%emt 0:00:30]} 6. h3 {[%emt 0:00:30]} Bh5 {[%emt 0:00:30]} 7. c4 {[%emt 0:00:30]} Nb6 {[%emt 0:00:30]} 8. Nc3 {[%emt 0:00:30]} Be7 {[%emt 0:00:30]} 9. exd6 {[%emt 0:00:30]} cxd6 {[%emt 0:00:30]} 10. d5 {[%emt 0:00:30]} e5 {[%emt 0:00:30]} 11. g4 {[%emt 0:00:30]} Bg6 {[%emt 0:00:30]} 12. h4 {[%emt 0:00:30]} h5 {[%emt 0:00:30]} 13. gxh5 {[%emt 0:00:30]} Bxh5 {[%emt 0:00:30]} 14. Be3 {[%emt 0:00:30]} N8d7 {[%emt 0:00:30]} 15. b3 {[%emt 0:00:30]} Rc8 {[%emt 0:00:30]} 16. Ng5 {[%emt 0:00:30]} Bxe2 {[%emt 0:00:30]} 17. Kxe2 {[%emt 0:00:30]} Nxc4 {[%emt 0:00:30]} 18. bxc4 {[%emt 0:00:30]} Rxc4 {[%emt 0:00:30]} 19. Qb3 {[%emt 0:00:30]} Qc8 {[%emt 0:00:30]} 20. Rac1 {[%emt 0:00:30]} Nb6 {[%emt 0:00:30]} 21. Qb5+ {[%emt 0:00:30]} Kf8 {[%emt 0:00:30]} 22. Nce4 {[%emt 0:00:30]} Bxg5 {[%emt 0:00:30]} 23. hxg5 {[%emt 0:00:30]} Rxh1 {[%emt 0:00:30]} 24. Rxh1 {[%emt 0:00:30]} Ke7 {[%emt 0:00:30]} 25. f3 {[%emt 0:00:30]} Rc2+ {[%emt 0:00:30]} 26. Kd3 {[%emt 0:00:30]} Nd7 {[%emt 0:00:30]} 27. Qb4 {[%emt 0:00:30]} Qc7 {[%emt 0:00:30]} 28. Nxd6 {[%emt 0:00:30]} Nc5+ {[%emt 0:00:30]} 1-0

[Event "XIII Mediterranean Championship 2023"]
[Site "Castell-Platja d Aro"]
[Date "2023.11.04"]
[Round "1.4"]
[White "Mateu Guiu, Esteve"]
[Black "Gines Esteo, Pedro Antonio"]
[Result "0-1"]
[ECO "D37"]
[WhiteElo "2075"]
[BlackElo "2490"]
[Annotator "ChessBase"]
[PlyCount "64"]
[EventDate "2023.10.26"]
[EventType "swiss"]
[EventCountry "ESP"]
[SourceTitle "playchess.com"]
[Source "ChessBase"]
[SourceQuality "1"]
[TimeControl "5400+30"]

1. d4 {[%emt 0:00:13]} Nf6 {[%emt 0:00:38]} 2. c4 {[%emt 0:00:09]} e6 {[%emt 0:00:05]} 3. Nf3 {[%emt 0:00:10]} a6 {[%emt 0:01:07]} 4. Nc3 {[%emt 0:00:25]} d5 {[%emt 0:00:06]} 5. c5 {[%emt 0:00:14]} Nc6 {[%emt 0:13:08]} 6. h3 {[%emt 0:00:22]} b6 {[%emt 0:06:41]} 7. cxb6 {[%emt 0:00:54]} cxb6 {[%emt 0:02:41]} 8. Bf4 {[%emt 0:00:24]} Ne4 {[%emt 0:00:53]} 9. e3 {[%emt 0:11:50]} Nxc3 {[%emt 0:05:08]} 10. bxc3 {[%emt 0:00:16]} Be7 {[%emt 0:09:10]} 11. Bd3 {[%emt 0:00:51]} O-O {[%emt 0:00:19]} 12. O-O {[%emt 0:00:16]} Bd7 {[%emt 0:00:35]} 13. Qe2 {[%emt 0:03:13]} b5 {[%emt 0:00:49]} 14. e4 {[%emt 0:13:58]} Qa5 {[%emt 0:07:55]} 15. Bd2 {[%emt 0:04:36]} Qa3 {[%emt 0:04:01]} 16. Rfb1 {[%emt 0:07:00]} Rfe8 {[%emt 0:04:39]} 17. Bc2 {[%emt 0:17:06]} Rac8 {[%emt 0:06:11]} 18. Qd3 {[%emt 0:02:06]} dxe4 {[%emt 0:04:21]} 19. Qxe4 {[%emt 0:00:22]} f5 {[%emt 0:00:01]} 20. Qd3 {[%emt 0:03:45]} Bf6 {[%emt 0:01:40]} 21. Bb3 {[%emt 0:02:39]} Na5 {[%emt 0:03:30]} 22. Bf4 {[%emt 0:03:57]} Bc6 {[%emt 0:02:35]} 23. Ne5 {[%emt 0:01:53]} Be4 {[%emt 0:01:19]} 24. Qg3 {[%emt 0:00:29]} Bxb1 {[%emt 0:01:00]} 25. Rxb1 {[%emt 0:00:34]} Qe7 {[%emt 0:04:09]} 26. Re1 {[%emt 0:03:07]} Nxb3 {[%emt 0:00:39]} 27. axb3 {[%emt 0:00:04]} a5 {[%emt 0:00:29]} 28. Ra1 {[%emt 0:02:52]} Ra8 {[%emt 0:00:35]} 29. Qd3 {[%emt 0:02:30]} Qb7 {[%emt 0:00:31]} 30. Qc2 {[%emt 0:03:28]} Rec8 {[%emt 0:01:04]} 31. Nd3 {[%emt 0:00:42]} Bxd4 {[%emt 0:00:47]} 32. Qe2 {[%emt 0:01:14]} Qe4 {[%emt 0:02:16]} 0-1

[Event "XIII Mediterranean Championship 2023"]
[Site "Castell-Platja d Aro"]
[Date "2023.11.04"]
[Round "1.5"]
[White "Garriga Cazorla, Pere"]
[Black "Pham Guerrero, Sergi"]
[Result "1-0"]
[ECO "A58"]
[WhiteElo "2459"]
[BlackElo "2072"]
[Annotator "ChessBase"]
[PlyCount "93"]
[EventDate "2023.10.26"]
[EventType "swiss"]
[EventCountry "ESP"]
[SourceTitle "playchess.com"]
[Source "ChessBase"]
[SourceQuality "1"]
[TimeControl "5400+30"]

1. d4 {[%emt 0:00:04]} Nf6 {[%emt 0:00:09]} 2. c4 {[%emt 0:00:06]} c5 {[%emt 0:00:12]} 3. d5 {[%emt 0:00:13]} b5 {[%emt 0:00:06]} 4. cxb5 {[%emt 0:00:05]} a6 {[%emt 0:00:05]} 5. bxa6 {[%emt 0:00:07]} d6 {[%emt 0:00:51]} 6. Nc3 {[%emt 0:00:08]} g6 {[%emt 0:00:10]} 7. e4 {[%emt 0:01:00]} Bg7 {[%emt 0:00:17]} 8. Nf3 {[%emt 0:00:48]} Qa5 {[%emt 0:01:36]} 9. Bb5+ {[%emt 0:08:51]} Bd7 {[%emt 0:03:39]} 10. Bxd7+ {[%emt 0:01:37]} Nbxd7 {[%emt 0:00:14]} 11. O-O {[%emt 0:00:07]} O-O {[%emt 0:00:16]} 12. h3 {[%emt 0:00:51]} Rfb8 {[%emt 0:00:24]} 13. Qc2 {[%emt 0:02:29]} Qxa6 {[%emt 0:02:18]} 14. Re1 {[%emt 0:02:25]} Nb6 {[%emt 0:01:51]} 15. a4 {[%emt 0:12:14]} Nfd7 {[%emt 0:20:48]} 16. Bg5 {[%emt 0:07:19]} Nc4 {[%emt 0:07:51]} 17. b3 {[%emt 0:04:18]} Nce5 {[%emt 0:08:09]} 18. Nxe5 {[%emt 0:02:35]} Nxe5 {[%emt 0:00:24]} 19. Bxe7 {[%emt 0:10:55]} Rb7 {[%emt 0:16:48]} 20. Bh4 {[%emt 0:05:34]} Qd3 {[%emt 0:00:42]} 21. Rac1 {[%emt 0:03:00]} Bh6 {[%emt 0:06:38]} 22. Nb5 {[%emt 0:01:35]} Ra6 {[%emt 0:06:59]} 23. Bf6 {[%emt 0:02:42]} Bg7 {[%emt 0:11:23]} 24. Bxg7 {[%emt 0:01:10]} Qxc2 {[%emt 0:00:39]} 25. Rxc2 {[%emt 0:00:04]} Kxg7 {[%emt 0:00:08]} 26. Re3 {[%emt 0:00:15]} g5 {[%emt 0:02:09]} 27. g3 {[%emt 0:01:23]} c4 {[%emt 0:01:48]} 28. bxc4 {[%emt 0:05:47]} Rxa4 {[%emt 0:00:26]} 29. Kg2 {[%emt 0:01:15]} Rb6 {[%emt 0:01:52]} 30. Rec3 {[%emt 0:00:52]} Kf6 {[%emt 0:02:32]} 31. Nd4 {[%emt 0:01:52]} Rb1 {[%emt 0:02:09]} 32. Nf3 {[%emt 0:03:07]} Nd7 {[%emt 0:01:34]} 33. Nd2 {[%emt 0:04:27]} Rbb4 {[%emt 0:00:51]} 34. Rf3+ {[%emt 0:00:39]} Ke7 {[%emt 0:00:33]} 35. Rf5 {[%emt 0:00:50]} h6 {[%emt 0:00:29]} 36. h4 {[%emt 0:00:47]} f6 {[%emt 0:00:14]} 37. hxg5 {[%emt 0:00:07]} hxg5 {[%emt 0:00:06]} 38. f4 {[%emt 0:00:39]} g4 {[%emt 0:00:49]} 39. Rh5 {[%emt 0:00:35]} Nb6 {[%emt 0:00:37]} 40. Rh7+ {[%emt 0:00:40]} Kd8 {[%emt 0:00:17]} 41. Rf7 {[%emt 0:01:38]} Nd7 {[%emt 0:00:39]} 42. Rg7 {[%emt 0:00:56]} Nb6 {[%emt 0:00:28]} 43. Rxg4 {[%emt 0:00:18]} Nxc4 {[%emt 0:00:07]} 44. Nxc4 {[%emt 0:00:03]} Rxc4 {[%emt 0:00:06]} 45. Rxc4 {[%emt 0:00:02]} Rxc4 {[%emt 0:00:08]} 46. Rg8+ {[%emt 0:00:03]} Ke7 {[%emt 0:00:12]} 47. Kf3 {[%emt 0:00:04]} 1-0

[Event "XIII Mediterranean Championship 2023"]
[Site "Castell-Platja d Aro"]
[Date "2023.11.04"]
[Round "1.6"]
[White "Garcia Paolicchi, Raul"]
[Black "Garcia Ramos, Daniel"]
[Result "0-1"]
[ECO "D02"]
[WhiteElo "2051"]
[BlackElo "2455"]
[Annotator "ChessBase"]
[PlyCount "94"]
[EventDate "2023.10.26"]
[EventType "swiss"]
[EventCountry "ESP"]
[SourceTitle "playchess.com"]
[Source "ChessBase"]
[SourceQuality "1"]
[TimeControl "5400+30"]

1. d4 Nf6 2. Nf3 e6 3. g3 d5 4. Bg2 Nbd7 5. O-O b5 6. a4 b4 7. c4 bxc3 8. bxc3 Bb7 9. Nbd2 c5 10. c4 Rc8 11. Ba3 Be7 12. Rc1 O-O 13. cxd5 Nxd5 14. Ne4 Qa5 15. dxc5 Nxc5 16. Bxc5 Bxc5 17. Rxc5 Rxc5 18. Nxc5 Qxc5 19. Qd4 Qc7 20. e3 a5 21. Kh1 Rc8 22. Rd1 h6 23. h3 Nc3 24. Rc1 Bxf3 25. Bxf3 Qc5 26. Qd7 Rb8 27. Qd3 Rb3 28. Qd8+ Kh7 29. Bd1 Ra3 30. Qd3+ f5 31. Qc2 Qd5+ 32. Kg1 Ne4 33. Bf3 Ra2 34. Qd1 Qxd1+ 35. Rxd1 Nxf2 36. Rd6 Nxh3+ 37. Kh1 Rxa4 38. Bc6 Ra1+ 39. Kg2 Ng5 40. Bd7 Ra2+ 41. Kg1 Kg6 42. Bxe6 Nxe6 43. Rxe6+ Kg5 44. e4 Re2 45. Ra6 Rxe4 46. Rxa5 Kg4 47. Kg2 {[%emt 0:49:32]} g5 {[%emt 0:38:19]} 0-1

[Event "XIII Mediterranean Championship 2023"]
[Site "Castell-Platja d Aro"]
[Date "2023.11.04"]
[Round "1.7"]
[White "Alexakis, Dimitris"]
[Black "Menac Comas, Joan Ramon"]
[Result "1-0"]
[ECO "B38"]
[WhiteElo "2458"]
[BlackElo "2044"]
[Annotator "ChessBase"]
[PlyCount "125"]
[EventDate "2023.10.26"]
[EventType "swiss"]
[EventCountry "ESP"]
[SourceTitle "playchess.com"]
[Source "ChessBase"]
[SourceQuality "1"]
[TimeControl "5400+30"]

1. e4 {[%emt 0:00:15]} c5 {[%emt 0:00:06]} 2. Nf3 {[%emt 0:00:31]} g6 {[%emt 0:00:06]} 3. c4 {[%emt 0:00:16]} Bg7 {[%emt 0:01:06]} 4. d4 {[%emt 0:00:08]} cxd4 {[%emt 0:01:00]} 5. Nxd4 {[%emt 0:00:06]} Nc6 {[%emt 0:00:11]} 6. Be3 {[%emt 0:00:07]} Nf6 {[%emt 0:00:06]} 7. Nc3 {[%emt 0:00:06]} O-O {[%emt 0:00:08]} 8. Be2 {[%emt 0:00:03]} d6 {[%emt 0:00:14]} 9. O-O {[%emt 0:00:10]} Bd7 {[%emt 0:00:18]} 10. f3 {[%emt 0:00:07]} Nxd4 {[%emt 0:01:12]} 11. Bxd4 {[%emt 0:00:06]} a5 {[%emt 0:00:29]} 12. b3 {[%emt 0:00:52]} Bc6 {[%emt 0:00:08]} 13. Qd2 {[%emt 0:00:26]} Nd7 {[%emt 0:00:14]} 14. Bf2 {[%emt 0:00:33]} Nc5 {[%emt 0:00:47]} 15. Rab1 {[%emt 0:00:15]} e6 {[%emt 0:02:33]} 16. Bd1 {[%emt 0:26:55]} f5 {[%emt 0:10:15]} 17. exf5 {[%emt 0:02:08]} gxf5 {[%emt 0:00:10]} 18. a3 {[%emt 0:02:46]} Qf6 {[%emt 0:17:35]} 19. Ne2 {[%emt 0:04:31]} Rfd8 {[%emt 0:11:10]} 20. b4 {[%emt 0:01:47]} axb4 {[%emt 0:03:14]} 21. axb4 {[%emt 0:00:05]} Na4 {[%emt 0:00:12]} 22. Nd4 {[%emt 0:07:34]} Be8 {[%emt 0:04:16]} 23. Bc2 {[%emt 0:13:58]} Bf7 {[%emt 0:10:08]} 24. g4 {[%emt 0:22:17]} Nb6 {[%emt 0:17:04]} 25. Qd3 {[%emt 0:00:47]} e5 {[%emt 0:04:01]} 26. Nxf5 {[%emt 0:01:48]} Bxc4 {[%emt 0:01:12]} 27. Qe3 {[%emt 0:06:05]} Bxf1 {[%emt 0:05:44]} 28. Qxb6 {[%emt 0:01:57]} Bc4 {[%emt 0:06:03]} 29. Bh4 {[%emt 0:01:22]} Qf8 {[%emt 0:00:05]} 30. Be7 {[%emt 0:03:32]} Qe8 {[%emt 0:02:17]} 31. Bxd8 {[%emt 0:00:07]} Rxd8 {[%emt 0:00:59]} 32. Nxd6 {[%emt 0:02:39]} Qd7 {[%emt 0:02:09]} 33. Nxc4 {[%emt 0:01:19]} e4 {[%emt 0:00:00]} 34. Rd1 {[%emt 0:01:03]} Qxd1+ {[%emt 0:00:30]} 35. Bxd1 {[%emt 0:00:01]} Bd4+ {[%emt 0:00:11]} 36. Qxd4 {[%emt 0:00:26]} Rxd4 {[%emt 0:00:01]} 37. Ne3 {[%emt 0:01:17]} Rxb4 {[%emt 0:00:26]} 38. f4 {[%emt 0:00:13]} Rb2 {[%emt 0:01:13]} 39. h4 {[%emt 0:00:40]} b5 {[%emt 0:00:13]} 40. g5 {[%emt 0:00:38]} b4 {[%emt 0:00:15]} 41. Kf1 {[%emt 0:00:09]} Rh2 {[%emt 0:01:33]} 42. h5 {[%emt 0:00:15]} Kf8 {[%emt 0:00:41]} 43. f5 {[%emt 0:00:41]} b3 {[%emt 0:00:37]} 44. Bxb3 {[%emt 0:00:36]} Rxh5 {[%emt 0:00:08]} 45. Bd5 {[%emt 0:00:15]} Rxg5 {[%emt 0:00:59]} 46. Bxe4 {[%emt 0:00:02]} h5 {[%emt 0:00:23]} 47. Kf2 {[%emt 0:00:29]} Kf7 {[%emt 0:00:58]} 48. Kf3 {[%emt 0:00:47]} Rg1 {[%emt 0:00:11]} 49. Kf4 {[%emt 0:00:16]} h4 {[%emt 0:00:37]} 50. Ng4 {[%emt 0:01:22]} h3 {[%emt 0:00:45]} 51. Bd5+ {[%emt 0:00:10]} Kg7 {[%emt 0:00:34]} 52. f6+ {[%emt 0:00:45]} Kg6 {[%emt 0:00:30]} 53. Be4+ {[%emt 0:00:10]} Kf7 {[%emt 0:00:09]} 54. Kf5 {[%emt 0:00:13]} Rf1+ {[%emt 0:00:38]} 55. Kg5 {[%emt 0:00:02]} h2 {[%emt 0:00:24]} 56. Bd5+ {[%emt 0:00:25]} Kf8 {[%emt 0:00:49]} 57. Nxh2 {[%emt 0:00:07]} Rd1 {[%emt 0:00:14]} 58. Bf3 {[%emt 0:00:48]} Rd2 {[%emt 0:00:42]} 59. Ng4 {[%emt 0:00:13]} Kf7 {[%emt 0:00:24]} 60. Kf5 {[%emt 0:00:14]} Rb2 {[%emt 0:00:20]} 61. Ne5+ {[%emt 0:00:20]} Kf8 {[%emt 0:00:12]} 62. Nd7+ {[%emt 0:01:06]} Ke8 {[%emt 0:00:24]} 63. Ke4 {[%emt 0:02:39]} 1-0

[Event "XIII Mediterranean Championship 2023"]
[Site "Castell-Platja d Aro"]
[Date "2023.11.04"]
[Round "1.8"]
[White "Jimenez Fernandez, Rebeca"]
[Black "Eugene, Floryan"]
[Result "0-1"]
[ECO "C79"]
[WhiteElo "2053"]
[BlackElo "2426"]
[Annotator "ChessBase"]
[PlyCount "126"]
[EventDate "2023.10.26"]
[EventType "swiss"]
[EventCountry "ESP"]
[SourceTitle "playchess.com"]
[Source "ChessBase"]
[SourceQuality "1"]
[TimeControl "5400+30"]

1. e4 {[%emt 0:00:03]} e5 {[%emt 0:00:08]} 2. Nf3 {[%emt 0:00:05]} Nc6 {[%emt 0:00:05]} 3. Bb5 {[%emt 0:00:04]} a6 {[%emt 0:00:15]} 4. Ba4 {[%emt 0:00:03]} Nf6 {[%emt 0:00:43]} 5. O-O {[%emt 0:00:10]} d6 {[%emt 0:00:05]} 6. c3 {[%emt 0:01:38]} Bd7 {[%emt 0:00:27]} 7. Re1 {[%emt 0:01:30]} g6 {[%emt 0:00:11]} 8. d4 {[%emt 0:03:10]} Bg7 {[%emt 0:00:19]} 9. Nbd2 {[%emt 0:03:34]} O-O {[%emt 0:01:17]} 10. Nf1 {[%emt 0:03:54]} exd4 {[%emt 0:14:29]} 11. cxd4 {[%emt 0:00:28]} Bg4 {[%emt 0:00:53]} 12. Bxc6 {[%emt 0:05:23]} bxc6 {[%emt 0:00:05]} 13. h3 {[%emt 0:00:32]} Bd7 {[%emt 0:00:26]} 14. Ng3 {[%emt 0:06:57]} Re8 {[%emt 0:01:29]} 15. Bf4 {[%emt 0:20:00]} h6 {[%emt 0:15:39]} 16. Qd2 {[%emt 0:05:47]} g5 {[%emt 0:22:56]} 17. Nxg5 {[%emt 0:00:58]} hxg5 {[%emt 0:00:05]} 18. Bxg5 {[%emt 0:00:06]} Qb8 {[%emt 0:00:31]} 19. e5 {[%emt 0:27:14]} Nh7 {[%emt 0:03:59]} 20. Nh5 {[%emt 0:04:02]} Re6 {[%emt 0:01:28]} 21. Bf6 {[%emt 0:09:05]} Bxf6 {[%emt 0:00:22]} 22. exf6 {[%emt 0:02:48]} Qf8 {[%emt 0:00:18]} 23. Rxe6 {[%emt 0:02:30]} fxe6 {[%emt 0:05:31]} 24. Re1 {[%emt 0:00:10]} Rb8 {[%emt 0:06:39]} 25. Re4 {[%emt 0:00:57]} Rb5 {[%emt 0:00:26]} 26. Rg4+ {[%emt 0:00:38]} Kh8 {[%emt 0:00:02]} 27. Nf4 {[%emt 0:01:12]} Be8 {[%emt 0:00:54]} 28. Nxe6 {[%emt 0:00:42]} Qxf6 {[%emt 0:00:30]} 29. Nxc7 {[%emt 0:00:17]} Bd7 {[%emt 0:00:23]} 30. Rf4 {[%emt 0:00:36]} Rf5 {[%emt 0:00:05]} 31. Rxf5 {[%emt 0:00:31]} Qxf5 {[%emt 0:01:10]} 32. Nxa6 {[%emt 0:00:17]} Qb1+ {[%emt 0:01:20]} 33. Kh2 {[%emt 0:00:01]} Qxa2 {[%emt 0:00:04]} 34. Nb8 {[%emt 0:00:24]} Be8 {[%emt 0:01:28]} 35. Qe3 {[%emt 0:01:18]} Qf7 {[%emt 0:00:04]} 36. Na6 {[%emt 0:00:41]} Nf6 {[%emt 0:02:00]} 37. Nb4 {[%emt 0:00:09]} Qh5 {[%emt 0:02:43]} 38. Qe7 {[%emt 0:00:44]} Qh4 {[%emt 0:00:16]} 39. Qf8+ {[%emt 0:00:35]} Kh7 {[%emt 0:00:02]} 40. Qe7+ {[%emt 0:00:09]} Kg8 {[%emt 0:00:31]} 41. Qxd6 {[%emt 0:01:00]} Ng4+ {[%emt 0:01:21]} 42. Kh1 {[%emt 0:00:16]} Nxf2+ {[%emt 0:00:10]} 43. Kg1 {[%emt 0:00:14]} Ne4 {[%emt 0:01:20]} 44. Qe6+ {[%emt 0:00:16]} Bf7 {[%emt 0:00:06]} 45. Qg4+ {[%emt 0:00:46]} Qxg4 {[%emt 0:00:05]} 46. hxg4 {[%emt 0:00:04]} Be8 {[%emt 0:01:30]} 47. Kf1 {[%emt 0:00:17]} Kf7 {[%emt 0:02:00]} 48. Ke2 {[%emt 0:00:08]} Ke6 {[%emt 0:00:17]} 49. Kd3 {[%emt 0:00:59]} Nf2+ {[%emt 0:03:14]} 50. Kc4 {[%emt 0:00:32]} Kd6 {[%emt 0:00:02]} 51. d5 {[%emt 0:01:33]} Bf7 {[%emt 0:00:36]} 52. g5 {[%emt 0:00:27]} c5 {[%emt 0:01:57]} 53. Na6 {[%emt 0:00:31]} Bxd5+ {[%emt 0:00:16]} 54. Kb5 {[%emt 0:00:06]} Nd3 {[%emt 0:01:07]} 55. g6 {[%emt 0:00:25]} Bc6+ {[%emt 0:01:03]} 56. Kb6 {[%emt 0:00:52]} Nxb2 {[%emt 0:00:07]} 57. g7 {[%emt 0:00:38]} Nc4+ {[%emt 0:00:05]} 58. Ka7 {[%emt 0:00:06]} Bd5 {[%emt 0:00:03]} 59. Kb8 {[%emt 0:00:39]} Ne3 {[%emt 0:01:06]} 60. Kc8 {[%emt 0:00:20]} Nf5 {[%emt 0:00:09]} 61. g4 {[%emt 0:00:37]} Nxg7 {[%emt 0:00:05]} 62. Kd8 {[%emt 0:01:22]} Ne6+ {[%emt 0:00:19]} 63. Ke8 {[%emt 0:00:00]} Nc7+ {[%emt 0:00:05]} 0-1

[Event "XIII Mediterranean Championship 2023"]
[Site "Castell-Platja d Aro"]
[Date "2023.11.04"]
[Round "1.9"]
[White "Ayats Llobera, Gerard"]
[Black "De Lussac, Estephe"]
[Result "1-0"]
[ECO "B72"]
[WhiteElo "2442"]
[BlackElo "2013"]
[Annotator "ChessBase"]
[PlyCount "67"]
[EventDate "2023.10.26"]
[EventType "swiss"]
[EventCountry "ESP"]
[SourceTitle "playchess.com"]
[Source "ChessBase"]
[SourceQuality "1"]
[TimeControl "5400+30"]

1. e4 {[%emt 0:05:34]} c5 {[%emt 0:00:25]} 2. Nf3 {[%emt 0:00:12]} d6 {[%emt 0:00:11]} 3. d4 {[%emt 0:00:07]} cxd4 {[%emt 0:00:04]} 4. Nxd4 {[%emt 0:00:02]} Nf6 {[%emt 0:00:07]} 5. Nc3 {[%emt 0:00:04]} g6 {[%emt 0:00:08]} 6. Be3 {[%emt 0:08:24]} Bg7 {[%emt 0:00:19]} 7. Be2 {[%emt 0:00:54]} O-O {[%emt 0:00:19]} 8. Qd2 {[%emt 0:00:19]} Nc6 {[%emt 0:00:16]} 9. O-O-O {[%emt 0:01:03]} Nxd4 {[%emt 0:03:52]} 10. Bxd4 {[%emt 0:03:58]} Be6 {[%emt 0:00:50]} 11. Kb1 {[%emt 0:02:03]} b5 {[%emt 0:15:03]} 12. Bxb5 {[%emt 0:06:44]} Rb8 {[%emt 0:23:07]} 13. Ba4 {[%emt 0:02:10]} Rb4 {[%emt 0:03:52]} 14. Qe2 {[%emt 0:08:36]} Qa5 {[%emt 0:24:06]} 15. Bb3 {[%emt 0:00:43]} Rfb8 {[%emt 0:02:11]} 16. Rd2 {[%emt 0:08:14]} Bxb3 {[%emt 0:08:43]} 17. axb3 {[%emt 0:01:00]} e5 {[%emt 0:07:47]} 18. Be3 {[%emt 0:00:15]} Nxe4 {[%emt 0:02:57]} 19. Nxe4 {[%emt 0:00:28]} Rxe4 {[%emt 0:00:05]} 20. Rxd6 {[%emt 0:07:30]} Ra4 {[%emt 0:02:13]} 21. bxa4 {[%emt 0:00:35]} Qb4 {[%emt 0:00:58]} 22. Rb6 {[%emt 0:01:08]} axb6 {[%emt 0:00:31]} 23. Qb5 {[%emt 0:00:07]} Qe4 {[%emt 0:00:30]} 24. Rd1 {[%emt 0:01:51]} Rc8 {[%emt 0:01:22]} 25. Rd2 {[%emt 0:05:30]} Qxg2 {[%emt 0:00:43]} 26. Bxb6 {[%emt 0:00:25]} Qe4 {[%emt 0:01:12]} 27. Be3 {[%emt 0:01:00]} Bf8 {[%emt 0:00:40]} 28. a5 {[%emt 0:02:40]} Bb4 {[%emt 0:00:59]} 29. Qd5 {[%emt 0:01:15]} Qg4 {[%emt 0:00:37]} 30. c3 {[%emt 0:01:38]} Bf8 {[%emt 0:00:45]} 31. a6 {[%emt 0:01:06]} Qa4 {[%emt 0:00:18]} 32. a7 {[%emt 0:01:48]} h5 {[%emt 0:00:30]} 33. Qb7 {[%emt 0:02:01]} Re8 {[%emt 0:00:19]} 34. f3 {[%emt 0:00:22]} 1-0